[Event "Early-Titled-Tuesday-Blitz-February-27-2024"]
[Site "Chess.com"]
[Date "2024.02.27"]
[Round "3"]
[White "GodzillaChessYoutube"]
[Black "Josetricks"]
[Result "1-0"]
[WhiteElo "2674"]
[BlackElo "2479"]
[TimeControl "180+1"]
[EndTime "8:28:07 PST"]
[Termination "GodzillaChessYoutube won by checkmate"]

1. d4 {[%clk 0:03:00.9]} 1... g6 {[%clk 0:02:58.5]} 2. Bf4 {[%clk 0:02:58.5]}
2... Bg7 {[%clk 0:02:58.7]} 3. Nc3 {[%clk 0:02:59]} 3... d6 {[%clk 0:02:56]} 4.
e4 {[%clk 0:02:58.3]} 4... Nd7 {[%clk 0:02:56.6]} 5. Nf3 {[%clk 0:02:57.6]} 5...
c6 {[%clk 0:02:52]} 6. Qd2 {[%clk 0:02:54.8]} 6... b5 {[%clk 0:02:52]} 7. a3
{[%clk 0:02:53.7]} 7... a5 {[%clk 0:02:49]} 8. h4 {[%clk 0:02:49.4]} 8... h5
{[%clk 0:02:27.1]} 9. Ng5 {[%clk 0:02:46.2]} 9... Bb7 {[%clk 0:02:07.7]} 10. f3
{[%clk 0:02:38.4]} 10... b4 {[%clk 0:02:06.6]} 11. Nd1 {[%clk 0:02:36.9]} 11...
c5 {[%clk 0:02:03.7]} 12. Bc4 {[%clk 0:02:32.5]} 12... Nh6 {[%clk 0:01:58]} 13.
Bxf7+ {[%clk 0:02:21.4]} 13... Nxf7 {[%clk 0:01:49.1]} 14. Ne6 {[%clk
0:02:22.3]} 14... Qb6 {[%clk 0:01:47.6]} 15. Nxg7+ {[%clk 0:02:22]} 15... Kf8
{[%clk 0:01:48.1]} 16. Ne6+ {[%clk 0:02:22.4]} 16... Ke8 {[%clk 0:01:48.7]} 17.
c3 {[%clk 0:01:00.7]} 17... bxa3 {[%clk 0:01:43.4]} 18. bxa3 {[%clk 0:00:59.9]}
18... Nd8 {[%clk 0:01:26.2]} 19. Ng5 {[%clk 0:00:49.3]} 19... Nc6 {[%clk
0:01:17]} 20. Ne3 {[%clk 0:00:49.7]} 20... Nf6 {[%clk 0:00:58.9]} 21. Ne6 {[%clk
0:00:42.3]} 21... cxd4 {[%clk 0:00:52.1]} 22. cxd4 {[%clk 0:00:41.3]} 22... Bc8
{[%clk 0:00:52]} 23. Nc4 {[%clk 0:00:33.7]} 23... Qa7 {[%clk 0:00:41.7]} 24. Ng5
{[%clk 0:00:33.1]} 24... Qxd4 {[%clk 0:00:37]} 25. Qxd4 {[%clk 0:00:27.6]} 25...
Nxd4 {[%clk 0:00:37.9]} 26. Kf2 {[%clk 0:00:28.2]} 26... Ba6 {[%clk 0:00:36]}
27. Nb6 {[%clk 0:00:26.5]} 27... Rb8 {[%clk 0:00:33.6]} 28. Rab1 {[%clk
0:00:27]} 28... e5 {[%clk 0:00:28.1]} 29. Be3 {[%clk 0:00:26.5]} 29... Ke7
{[%clk 0:00:24.3]} 30. Rhc1 {[%clk 0:00:22.4]} 30... Rb7 {[%clk 0:00:04.6]} 31.
Nd5+ {[%clk 0:00:19.5]} 31... Nxd5 {[%clk 0:00:04.7]} 32. exd5 {[%clk
0:00:19.5]} 32... Rxb1 {[%clk 0:00:02.2]} 33. Rxb1 {[%clk 0:00:20.4]} 33... Rc8
{[%clk 0:00:01.9]} 34. Rb6 {[%clk 0:00:18.4]} 34... Rc2+ {[%clk 0:00:02.6]} 35.
Kg1 {[%clk 0:00:18.4]} 35... Bc4 {[%clk 0:00:03.5]} 36. Rb7+ {[%clk 0:00:15.1]}
36... Kf6 {[%clk 0:00:04]} 37. Ne4+ {[%clk 0:00:14.9]} 37... Kf5 {[%clk
0:00:02.2]} 38. Rf7# {[%clk 0:00:15.6]} 1-0

[Event "Early-Titled-Tuesday-Blitz-February-27-2024"]
[Site "Chess.com"]
[Date "2024.02.27"]
[Round "3"]
[White "Yushko_Olga"]
[Black "Kotofeyca"]
[Result "0-1"]
[WhiteElo "2207"]
[BlackElo "2425"]
[TimeControl "180+1"]
[EndTime "8:28:07 PST"]
[Termination "Kotofeyca won by resignation"]

1. d4 {[%clk 0:02:59.4]} 1... d5 {[%clk 0:03:00.1]} 2. c4 {[%clk 0:03:00]} 2...
c6 {[%clk 0:03:00.6]} 3. cxd5 {[%clk 0:03:00.2]} 3... cxd5 {[%clk 0:03:00.5]} 4.
Nc3 {[%clk 0:03:00.9]} 4... Nf6 {[%clk 0:03:01]} 5. Nf3 {[%clk 0:03:01.8]} 5...
Nc6 {[%clk 0:03:01.4]} 6. Bf4 {[%clk 0:03:02.3]} 6... a6 {[%clk 0:03:01.8]} 7.
e3 {[%clk 0:03:02]} 7... Bg4 {[%clk 0:03:02]} 8. Be2 {[%clk 0:03:02]} 8... e6
{[%clk 0:03:02.4]} 9. O-O {[%clk 0:03:02.2]} 9... Bd6 {[%clk 0:03:02.6]} 10. Bg5
{[%clk 0:03:01.2]} 10... O-O {[%clk 0:03:02.2]} 11. a3 {[%clk 0:03:01.2]} 11...
b5 {[%clk 0:02:59.7]} 12. Rc1 {[%clk 0:03:00.5]} 12... Na5 {[%clk 0:02:58.1]}
13. Ne5 {[%clk 0:02:54.5]} 13... Bxe2 {[%clk 0:02:54.9]} 14. Qxe2 {[%clk
0:02:55.4]} 14... Nc4 {[%clk 0:02:42]} 15. e4 {[%clk 0:02:50.6]} 15... Nxe5
{[%clk 0:02:17.5]} 16. dxe5 {[%clk 0:02:48.4]} 16... Bxe5 {[%clk 0:02:17]} 17.
exd5 {[%clk 0:02:44.8]} 17... Bxc3 {[%clk 0:02:15.9]} 18. Rxc3 {[%clk
0:02:42.6]} 18... Qxd5 {[%clk 0:01:57.9]} 19. Bxf6 {[%clk 0:02:41.7]} 19... gxf6
{[%clk 0:01:58.8]} 20. Rh3 {[%clk 0:02:28.8]} 20... Kh8 {[%clk 0:01:38.1]} 21.
Rh5 {[%clk 0:02:21.9]} 21... Qc4 {[%clk 0:00:59.2]} 22. Qf3 {[%clk 0:02:21.7]}
22... Qd4 {[%clk 0:00:39.7]} 23. Rd1 {[%clk 0:02:11.5]} 23... Qxb2 {[%clk
0:00:35.9]} 24. Qe4 {[%clk 0:02:10.6]} 24... f5 {[%clk 0:00:32.9]} 25. Qh4
{[%clk 0:02:10.1]} 25... Qg7 {[%clk 0:00:29.3]} 26. Rd3 {[%clk 0:02:03.1]} 26...
Rac8 {[%clk 0:00:27.7]} 27. h3 {[%clk 0:02:02.3]} 27... Rc4 {[%clk 0:00:26.5]}
28. f4 {[%clk 0:01:53.5]} 28... Rg8 {[%clk 0:00:24.6]} 29. Rg3 {[%clk
0:01:46.4]} 29... Qa1+ {[%clk 0:00:13.2]} 30. Kh2 {[%clk 0:01:46.1]} 30... Rxg3
{[%clk 0:00:12.1]} 31. Rxh7+ {[%clk 0:01:45]} 31... Kg8 {[%clk 0:00:12.3]} 32.
Kxg3 {[%clk 0:01:38.1]} 32... Qe1+ {[%clk 0:00:12.1]} 33. Kh2 {[%clk 0:01:38.3]}
33... Qxh4 {[%clk 0:00:13]} 34. Rxh4 {[%clk 0:01:38]} 34... Ra4 {[%clk
0:00:13.2]} 35. g4 {[%clk 0:01:34.5]} 35... Rxf4 {[%clk 0:00:12.4]} 36. Kg3
{[%clk 0:01:33.2]} 36... Ra4 {[%clk 0:00:12.4]} 37. Rh5 {[%clk 0:01:31.8]} 37...
fxg4 {[%clk 0:00:11.5]} 38. hxg4 {[%clk 0:01:31.7]} 38... Rxa3+ {[%clk
0:00:12.4]} 39. Kh4 {[%clk 0:01:31.1]} 39... b4 {[%clk 0:00:12.8]} 40. Rg5+
{[%clk 0:01:29.5]} 40... Kf8 {[%clk 0:00:12.3]} 41. Rc5 {[%clk 0:01:29.4]} 41...
b3 {[%clk 0:00:12.3]} 42. Rc8+ {[%clk 0:01:27.7]} 42... Kg7 {[%clk 0:00:12.5]}
43. Rb8 {[%clk 0:01:27.7]} 43... a5 {[%clk 0:00:13.1]} 44. Kg5 {[%clk
0:01:27.5]} 44... a4 {[%clk 0:00:13.7]} 45. Rb7 {[%clk 0:01:27.1]} 45... Ra2
{[%clk 0:00:13.9]} 46. Kf4 {[%clk 0:01:24.1]} 46... b2 {[%clk 0:00:14.4]} 47. g5
{[%clk 0:01:23.8]} 47... a3 {[%clk 0:00:14.6]} 48. Ke5 {[%clk 0:01:19.7]} 48...
Ra1 {[%clk 0:00:14.8]} 49. Kd6 {[%clk 0:01:19.2]} 49... b1=Q {[%clk 0:00:15]}
50. Rc7 {[%clk 0:01:18.9]} 50... Qd3+ {[%clk 0:00:14.1]} 51. Ke7 {[%clk
0:01:18.8]} 51... a2 {[%clk 0:00:12.1]} 52. Ke8 {[%clk 0:01:15]} 52... Rf1
{[%clk 0:00:11.5]} 53. g6 {[%clk 0:01:14.5]} 53... Kxg6 {[%clk 0:00:10]} 54.
Rxf7 {[%clk 0:01:11.3]} 54... Qb5+ {[%clk 0:00:06.9]} 55. Rd7 {[%clk 0:01:11.3]}
55... Rf8+ {[%clk 0:00:06.5]} 56. Ke7 {[%clk 0:01:10.9]} 56... Qxd7+ {[%clk
0:00:05.9]} 57. Kxd7 {[%clk 0:01:10]} 57... a1=Q {[%clk 0:00:06.8]} 0-1

[Event "Early-Titled-Tuesday-Blitz-February-27-2024"]
[Site "Chess.com"]
[Date "2024.02.27"]
[Round "3"]
[White "KingCrusher275"]
[Black "MyDream003"]
[Result "0-1"]
[WhiteElo "2480"]
[BlackElo "2705"]
[TimeControl "180+1"]
[EndTime "8:28:08 PST"]
[Termination "MyDream003 won by resignation"]

1. d4 {[%clk 0:02:56.3]} 1... Nf6 {[%clk 0:02:59.6]} 2. c4 {[%clk 0:02:55]} 2...
c5 {[%clk 0:02:59.4]} 3. d5 {[%clk 0:02:54.9]} 3... e6 {[%clk 0:02:59.8]} 4. Nc3
{[%clk 0:02:54.1]} 4... exd5 {[%clk 0:03:00.1]} 5. cxd5 {[%clk 0:02:52.7]} 5...
d6 {[%clk 0:03:00.5]} 6. e4 {[%clk 0:02:50.9]} 6... g6 {[%clk 0:03:00.8]} 7. f4
{[%clk 0:02:47.6]} 7... Bg7 {[%clk 0:03:00.1]} 8. Bb5+ {[%clk 0:02:47.2]} 8...
Nfd7 {[%clk 0:03:00.4]} 9. a4 {[%clk 0:02:46.7]} 9... O-O {[%clk 0:02:56.6]} 10.
Nf3 {[%clk 0:02:45.6]} 10... Na6 {[%clk 0:02:56.4]} 11. O-O {[%clk 0:02:45]}
11... Nb4 {[%clk 0:02:53.9]} 12. Re1 {[%clk 0:02:44.8]} 12... a6 {[%clk
0:02:44]} 13. Bf1 {[%clk 0:02:44.3]} 13... Nf6 {[%clk 0:02:41.8]} 14. h3 {[%clk
0:02:17.5]} 14... Re8 {[%clk 0:02:39]} 15. g4 {[%clk 0:01:15.4]} 15... h6 {[%clk
0:02:21.6]} 16. Bg2 {[%clk 0:01:02.3]} 16... Rb8 {[%clk 0:02:20.1]} 17. a5
{[%clk 0:00:53.5]} 17... b5 {[%clk 0:02:14.1]} 18. axb6 {[%clk 0:00:53.2]} 18...
Rxb6 {[%clk 0:02:14.4]} 19. Ra3 {[%clk 0:00:44.7]} 19... c4 {[%clk 0:02:08.1]}
20. Nd4 {[%clk 0:00:40.8]} 20... Nd3 {[%clk 0:02:03.4]} 21. Nc6 {[%clk
0:00:38.3]} 21... Rxc6 {[%clk 0:01:29]} 22. dxc6 {[%clk 0:00:34.9]} 22... Qb6+
{[%clk 0:01:28.9]} 23. Kh2 {[%clk 0:00:19.7]} 23... Nxe1 {[%clk 0:01:06]} 24.
Qxe1 {[%clk 0:00:20.1]} 24... Qxc6 {[%clk 0:01:06.4]} 25. Qd1 {[%clk 0:00:20.8]}
25... Qc5 {[%clk 0:01:01.2]} 26. Qa4 {[%clk 0:00:16.5]} 26... Bb7 {[%clk
0:00:49.1]} 27. Qa5 {[%clk 0:00:11.2]} 27... Qf2 {[%clk 0:00:45.7]} 28. Nd1
{[%clk 0:00:05.6]} 28... Qc2 {[%clk 0:00:39.6]} 29. Qd2 {[%clk 0:00:04.2]} 29...
Qxd2 {[%clk 0:00:39.9]} 30. Bxd2 {[%clk 0:00:05.1]} 30... Nxe4 {[%clk
0:00:39.1]} 31. Bxe4 {[%clk 0:00:05.8]} 31... Rxe4 {[%clk 0:00:39]} 32. Bc3
{[%clk 0:00:05.8]} 32... Rxf4 {[%clk 0:00:35.1]} 33. Bxg7 {[%clk 0:00:04.8]}
33... Kxg7 {[%clk 0:00:36]} 34. Ne3 {[%clk 0:00:03.6]} 34... Rf2+ {[%clk
0:00:34.5]} 35. Kg1 {[%clk 0:00:04.5]} 35... Rxb2 {[%clk 0:00:32.5]} 36. Nxc4
{[%clk 0:00:05.1]} 36... Rb1+ {[%clk 0:00:33]} 37. Kf2 {[%clk 0:00:04.8]} 37...
d5 {[%clk 0:00:32.1]} 38. Nd6 {[%clk 0:00:05.4]} 38... Kf6 {[%clk 0:00:20.9]}
39. Nxb7 {[%clk 0:00:03.6]} 39... Rxb7 {[%clk 0:00:21.8]} 40. Rxa6+ {[%clk
0:00:01.6]} 40... Ke5 {[%clk 0:00:22.1]} 41. Ke3 {[%clk 0:00:01.6]} 41... Rb3+
{[%clk 0:00:22.2]} 0-1

[Event "Early-Titled-Tuesday-Blitz-February-27-2024"]
[Site "Chess.com"]
[Date "2024.02.27"]
[Round "3"]
[White "FREDERICKtheMATE"]
[Black "orkinyo12345"]
[Result "1/2-1/2"]
[WhiteElo "2662"]
[BlackElo "2487"]
[TimeControl "180+1"]
[EndTime "8:28:11 PST"]
[Termination "Game drawn by repetition"]

1. Nf3 {[%clk 0:03:00.9]} 1... Nf6 {[%clk 0:02:50.9]} 2. e3 {[%clk 0:03:01.3]}
2... g6 {[%clk 0:02:50.9]} 3. c4 {[%clk 0:03:01.5]} 3... Bg7 {[%clk 0:02:51.5]}
4. Nc3 {[%clk 0:03:00.9]} 4... O-O {[%clk 0:02:51.8]} 5. Be2 {[%clk 0:02:59.9]}
5... d6 {[%clk 0:02:47.7]} 6. d4 {[%clk 0:02:59]} 6... Nc6 {[%clk 0:02:44.5]} 7.
O-O {[%clk 0:02:58.4]} 7... e5 {[%clk 0:02:45]} 8. b3 {[%clk 0:02:57.6]} 8...
exd4 {[%clk 0:02:44.9]} 9. exd4 {[%clk 0:02:57.6]} 9... Re8 {[%clk 0:02:45.5]}
10. Bb2 {[%clk 0:02:55.5]} 10... d5 {[%clk 0:02:23.4]} 11. Re1 {[%clk 0:02:51]}
11... Bg4 {[%clk 0:02:19.1]} 12. c5 {[%clk 0:02:49.2]} 12... Bxf3 {[%clk
0:02:16.9]} 13. gxf3 {[%clk 0:02:44.2]} 13... Nh5 {[%clk 0:02:17]} 14. Nb5
{[%clk 0:02:37.6]} 14... a6 {[%clk 0:02:16.4]} 15. Na3 {[%clk 0:02:36.6]} 15...
Qh4 {[%clk 0:02:16.4]} 16. Nc2 {[%clk 0:02:34.5]} 16... Nf4 {[%clk 0:02:09.2]}
17. Bf1 {[%clk 0:02:34.1]} 17... Ne6 {[%clk 0:01:55]} 18. Qd3 {[%clk 0:02:26.6]}
18... Nexd4 {[%clk 0:01:15.7]} 19. Rxe8+ {[%clk 0:02:23.2]} 19... Rxe8 {[%clk
0:01:16.6]} 20. Nxd4 {[%clk 0:02:23.4]} 20... Bxd4 {[%clk 0:01:15.1]} 21. Bxd4
{[%clk 0:02:22.9]} 21... Qxd4 {[%clk 0:01:16]} 22. Qxd4 {[%clk 0:02:18.8]} 22...
Nxd4 {[%clk 0:01:16]} 23. Rd1 {[%clk 0:02:19.3]} 23... Nxf3+ {[%clk 0:00:53.6]}
24. Kg2 {[%clk 0:02:19.1]} 24... Nh4+ {[%clk 0:00:37.5]} 25. Kh3 {[%clk
0:02:18.3]} 25... Nf5 {[%clk 0:00:35.3]} 26. Rxd5 {[%clk 0:02:18]} 26... c6
{[%clk 0:00:33.7]} 27. Rd1 {[%clk 0:02:14]} 27... Kg7 {[%clk 0:00:30.4]} 28. Kg4
{[%clk 0:02:12.5]} 28... Kf6 {[%clk 0:00:30.4]} 29. Bc4 {[%clk 0:02:10.4]} 29...
Re4+ {[%clk 0:00:29.6]} 30. Kf3 {[%clk 0:02:09.6]} 30... Rd4 {[%clk 0:00:29.4]}
31. Re1 {[%clk 0:02:06.8]} 31... Rd2 {[%clk 0:00:25.2]} 32. Re8 {[%clk
0:02:02.7]} 32... Rxa2 {[%clk 0:00:18.6]} 33. Rb8 {[%clk 0:02:02.4]} 33... Nd4+
{[%clk 0:00:15.8]} 34. Ke3 {[%clk 0:02:00.5]} 34... Ne6 {[%clk 0:00:15.6]} 35.
Rxb7 {[%clk 0:02:00.9]} 35... Nxc5 {[%clk 0:00:15]} 36. Rxf7+ {[%clk 0:02:00.2]}
36... Ke5 {[%clk 0:00:13.5]} 37. f4+ {[%clk 0:01:56.3]} 37... Kd6 {[%clk
0:00:12.9]} 38. Rxh7 {[%clk 0:01:56.7]} 38... Ra3 {[%clk 0:00:12.7]} 39. Rh6
{[%clk 0:01:54.9]} 39... Nxb3 {[%clk 0:00:12.8]} 40. Rxg6+ {[%clk 0:01:55.1]}
40... Kc5 {[%clk 0:00:11.6]} 41. Bxb3 {[%clk 0:01:55.1]} 41... Rxb3+ {[%clk
0:00:12.5]} 42. Ke4 {[%clk 0:01:55.6]} 42... a5 {[%clk 0:00:11.9]} 43. f5 {[%clk
0:01:55.5]} 43... a4 {[%clk 0:00:12.4]} 44. f6 {[%clk 0:01:54.5]} 44... Kd6
{[%clk 0:00:12.9]} 45. f7+ {[%clk 0:01:34]} 45... Ke7 {[%clk 0:00:12.9]} 46.
Rxc6 {[%clk 0:01:34.4]} 46... Kxf7 {[%clk 0:00:12.9]} 47. Ra6 {[%clk 0:01:34.5]}
47... a3 {[%clk 0:00:12.5]} 48. h4 {[%clk 0:01:34.9]} 48... Rh3 {[%clk
0:00:12.1]} 49. Kf5 {[%clk 0:01:33.5]} 49... Rxh4 {[%clk 0:00:12.5]} 50. Ra7+
{[%clk 0:01:33.5]} 50... Kg8 {[%clk 0:00:12]} 51. Rxa3 {[%clk 0:01:34.4]} 51...
Rh1 {[%clk 0:00:11.7]} 52. Kg6 {[%clk 0:01:35]} 52... Rg1+ {[%clk 0:00:11.5]}
53. Kf6 {[%clk 0:01:35.7]} 53... Rf1+ {[%clk 0:00:12.1]} 54. Kg5 {[%clk
0:01:36.6]} 54... Rg1+ {[%clk 0:00:12.5]} 55. Kf4 {[%clk 0:01:37.5]} 55... Rf1+
{[%clk 0:00:13]} 56. Kg3 {[%clk 0:01:38.4]} 56... Rg1+ {[%clk 0:00:13.5]} 57.
Kf2 {[%clk 0:01:39.3]} 57... Rg7 {[%clk 0:00:13.5]} 58. Ra8+ {[%clk 0:01:39.4]}
58... Kh7 {[%clk 0:00:13.7]} 59. Ra3 {[%clk 0:01:40.3]} 59... Rf7+ {[%clk
0:00:14.1]} 60. Kg2 {[%clk 0:01:39.4]} 60... Rg7+ {[%clk 0:00:14.2]} 61. Kh2
{[%clk 0:01:39.3]} 61... Rg6 {[%clk 0:00:15.1]} 62. Rh3+ {[%clk 0:01:39.3]}
62... Kg7 {[%clk 0:00:16]} 63. Ra3 {[%clk 0:01:38.8]} 63... Kh6 {[%clk
0:00:16.9]} 64. Ra7 {[%clk 0:01:39.1]} 64... Kg5 {[%clk 0:00:17]} 65. Ra5+
{[%clk 0:01:39.2]} 65... Kh6 {[%clk 0:00:17.9]} 66. Ra4 {[%clk 0:01:39.6]} 66...
Kg7 {[%clk 0:00:18.8]} 67. Ra3 {[%clk 0:01:40.3]} 67... Rh6+ {[%clk 0:00:19.3]}
68. Kg2 {[%clk 0:01:39.7]} 68... Rg6+ {[%clk 0:00:20.2]} 69. Kf2 {[%clk
0:01:39.1]} 69... Rf6+ {[%clk 0:00:21.1]} 70. Ke2 {[%clk 0:01:39.7]} 70... Rg6
{[%clk 0:00:22]} 71. Kf3 {[%clk 0:01:39.8]} 71... Rf6+ {[%clk 0:00:22.9]} 72.
Kg4 {[%clk 0:01:40.5]} 72... Rg6+ {[%clk 0:00:23.8]} 73. Kf5 {[%clk 0:01:41.2]}
73... Rf6+ {[%clk 0:00:24.2]} 74. Kg5 {[%clk 0:01:42.1]} 74... Rg6+ {[%clk
0:00:24.7]} 75. Kf5 {[%clk 0:01:43]} 75... Rf6+ {[%clk 0:00:25.1]} 76. Ke5
{[%clk 0:01:43.9]} 76... Rf7 {[%clk 0:00:25.5]} 77. Ra6 {[%clk 0:01:44]} 77...
Re7+ {[%clk 0:00:25.5]} 78. Kf5 {[%clk 0:01:43.9]} 78... Rf7+ {[%clk 0:00:26.1]}
79. Kg5 {[%clk 0:01:44.6]} 79... Rb7 {[%clk 0:00:26.7]} 80. Ra5 {[%clk
0:01:44.8]} 80... Rc7 {[%clk 0:00:26.9]} 81. Re5 {[%clk 0:01:45.2]} 81... Rb7
{[%clk 0:00:27.2]} 82. Rc5 {[%clk 0:01:45.6]} 82... Rf7 {[%clk 0:00:27.4]} 83.
Rb5 {[%clk 0:01:45]} 83... Rf8 {[%clk 0:00:27.9]} 84. Rb7+ {[%clk 0:01:44.2]}
84... Rf7 {[%clk 0:00:28.8]} 85. Rb6 {[%clk 0:01:44.3]} 85... Rf8 {[%clk
0:00:29.7]} 86. Rg6+ {[%clk 0:01:43.8]} 86... Kh7 {[%clk 0:00:30.2]} 87. Ra6
{[%clk 0:01:43.5]} 87... Kg7 {[%clk 0:00:30.7]} 88. Rg6+ {[%clk 0:01:43.1]}
88... Kh7 {[%clk 0:00:31.2]} 89. Rh6+ {[%clk 0:01:44]} 89... Kg7 {[%clk
0:00:31.2]} 90. Ra6 {[%clk 0:01:44.9]} 90... Rf7 {[%clk 0:00:31]} 91. Rb6 {[%clk
0:01:44.6]} 91... Rf8 {[%clk 0:00:31.2]} 92. Rb5 {[%clk 0:01:45.2]} 92... Rf7
{[%clk 0:00:31.9]} 93. Rb6 {[%clk 0:01:45.3]} 1/2-1/2

[Event "Early-Titled-Tuesday-Blitz-February-27-2024"]
[Site "Chess.com"]
[Date "2024.02.27"]
[Round "3"]
[White "abeljusto"]
[Black "InitiatingASC"]
[Result "1-0"]
[WhiteElo "2108"]
[BlackElo "2366"]
[TimeControl "180+1"]
[EndTime "8:28:12 PST"]
[Termination "abeljusto won on time"]

1. e4 {[%clk 0:03:00.9]} 1... c5 {[%clk 0:02:58.6]} 2. Nf3 {[%clk 0:03:01.1]}
2... Nc6 {[%clk 0:02:58.7]} 3. d4 {[%clk 0:03:01.2]} 3... cxd4 {[%clk
0:02:59.1]} 4. Nxd4 {[%clk 0:03:01.7]} 4... Nf6 {[%clk 0:02:59.7]} 5. Nc3 {[%clk
0:03:01.9]} 5... e5 {[%clk 0:02:59.8]} 6. Ndb5 {[%clk 0:03:01.4]} 6... h6 {[%clk
0:03:00.3]} 7. Nd6+ {[%clk 0:02:57.9]} 7... Bxd6 {[%clk 0:02:59.8]} 8. Qxd6
{[%clk 0:02:58.6]} 8... Qe7 {[%clk 0:03:00.7]} 9. Qd1 {[%clk 0:02:51.5]} 9...
O-O {[%clk 0:03:00.2]} 10. Bc4 {[%clk 0:02:46.4]} 10... Rd8 {[%clk 0:02:46.1]}
11. O-O {[%clk 0:02:39.6]} 11... Na5 {[%clk 0:02:43.8]} 12. Nd5 {[%clk
0:02:28.5]} 12... Nxd5 {[%clk 0:02:30.8]} 13. Bxd5 {[%clk 0:02:27.6]} 13... d6
{[%clk 0:02:28.7]} 14. f4 {[%clk 0:02:25.8]} 14... Be6 {[%clk 0:02:23.7]} 15. f5
{[%clk 0:02:20.7]} 15... Bxd5 {[%clk 0:02:15.1]} 16. Qxd5 {[%clk 0:02:09.6]}
16... Qc7 {[%clk 0:02:12.8]} 17. f6 {[%clk 0:02:07.2]} 17... Qc5+ {[%clk
0:02:05.7]} 18. Rf2 {[%clk 0:01:43.9]} 18... Qxd5 {[%clk 0:01:31.7]} 19. exd5
{[%clk 0:01:40]} 19... Nc4 {[%clk 0:01:31.3]} 20. fxg7 {[%clk 0:01:29.3]} 20...
Kxg7 {[%clk 0:01:30.9]} 21. b3 {[%clk 0:01:29]} 21... Nb6 {[%clk 0:01:28.9]} 22.
c4 {[%clk 0:01:28.4]} 22... Rf8 {[%clk 0:01:20.5]} 23. Rf5 {[%clk 0:01:21.8]}
23... Kg6 {[%clk 0:01:13.4]} 24. g4 {[%clk 0:01:21.3]} 24... Rad8 {[%clk
0:00:55.3]} 25. Be3 {[%clk 0:01:20.2]} 25... Nc8 {[%clk 0:00:55.2]} 26. Raf1
{[%clk 0:01:18.6]} 26... f6 {[%clk 0:00:52.1]} 27. h4 {[%clk 0:00:59.8]} 27...
Ne7 {[%clk 0:00:32.3]} 28. R5f2 {[%clk 0:00:28.3]} 28... b6 {[%clk 0:00:30.8]}
29. Kh2 {[%clk 0:00:26.2]} 29... Rf7 {[%clk 0:00:29.1]} 30. h5+ {[%clk
0:00:25.6]} 30... Kg7 {[%clk 0:00:26.3]} 31. Kh3 {[%clk 0:00:25.5]} 31... Rdf8
{[%clk 0:00:25.3]} 32. a3 {[%clk 0:00:18.6]} 32... f5 {[%clk 0:00:22.9]} 33.
gxf5 {[%clk 0:00:18.8]} 33... Rxf5 {[%clk 0:00:19.3]} 34. Rxf5 {[%clk 0:00:18]}
34... Rxf5 {[%clk 0:00:16.2]} 35. Rxf5 {[%clk 0:00:18.2]} 35... Nxf5 {[%clk
0:00:16.4]} 36. Bf2 {[%clk 0:00:17.4]} 36... Kf7 {[%clk 0:00:13]} 37. Kg4 {[%clk
0:00:17.1]} 37... Ne7 {[%clk 0:00:07.6]} 38. b4 {[%clk 0:00:16.6]} 38... Ng8
{[%clk 0:00:02.7]} 39. Be3 {[%clk 0:00:16.6]} 39... Nf6+ {[%clk 0:00:03.1]} 40.
Kh4 {[%clk 0:00:14.8]} 40... Kg7 {[%clk 0:00:03.1]} 41. a4 {[%clk 0:00:12.4]}
41... Ne4 {[%clk 0:00:01.4]} 42. a5 {[%clk 0:00:11]} 1-0

[Event "Early-Titled-Tuesday-Blitz-February-27-2024"]
[Site "Chess.com"]
[Date "2024.02.27"]
[Round "3"]
[White "scarabee43"]
[Black "bazar-wokzal"]
[Result "1-0"]
[WhiteElo "2883"]
[BlackElo "2675"]
[TimeControl "180+1"]
[EndTime "8:28:15 PST"]
[Termination "scarabee43 won on time"]

1. Nf3 {[%clk 0:03:00.9]} 1... c5 {[%clk 0:02:59.5]} 2. e3 {[%clk 0:03:00.4]}
2... g6 {[%clk 0:02:59]} 3. d4 {[%clk 0:03:01.1]} 3... Bg7 {[%clk 0:02:59.4]} 4.
dxc5 {[%clk 0:02:58.2]} 4... Nf6 {[%clk 0:02:58.9]} 5. Be2 {[%clk 0:02:56.4]}
5... O-O {[%clk 0:02:58.4]} 6. O-O {[%clk 0:02:56.9]} 6... Qc7 {[%clk
0:02:51.6]} 7. a3 {[%clk 0:02:50.9]} 7... Qxc5 {[%clk 0:02:50.4]} 8. b4 {[%clk
0:02:50.8]} 8... Qc7 {[%clk 0:02:49.2]} 9. Bb2 {[%clk 0:02:51]} 9... d5 {[%clk
0:02:46.5]} 10. Nc3 {[%clk 0:02:46.5]} 10... Rd8 {[%clk 0:02:43.2]} 11. Nb5
{[%clk 0:02:45.4]} 11... Qd7 {[%clk 0:02:01.2]} 12. Ne5 {[%clk 0:02:44.5]} 12...
Qf5 {[%clk 0:02:00.6]} 13. f4 {[%clk 0:02:23.2]} 13... Nc6 {[%clk 0:01:42.5]}
14. Bd3 {[%clk 0:01:24]} 14... Qh5 {[%clk 0:01:35.3]} 15. Nxc6 {[%clk
0:01:17.7]} 15... bxc6 {[%clk 0:01:35]} 16. Qxh5 {[%clk 0:01:17.4]} 16... Nxh5
{[%clk 0:01:32.2]} 17. Bxg7 {[%clk 0:01:18.1]} 17... Nxg7 {[%clk 0:01:27.8]} 18.
Nd4 {[%clk 0:01:18.2]} 18... Bd7 {[%clk 0:01:26.6]} 19. e4 {[%clk 0:01:14.4]}
19... a5 {[%clk 0:01:12.4]} 20. e5 {[%clk 0:01:08.8]} 20... Ne6 {[%clk
0:01:01.9]} 21. Nxe6 {[%clk 0:01:03.2]} 21... Bxe6 {[%clk 0:01:02.2]} 22. Rfb1
{[%clk 0:00:56.5]} 22... axb4 {[%clk 0:00:47.8]} 23. axb4 {[%clk 0:00:54.1]}
23... Rxa1 {[%clk 0:00:44.3]} 24. Rxa1 {[%clk 0:00:53.8]} 24... f6 {[%clk
0:00:24.3]} 25. exf6 {[%clk 0:00:47.3]} 25... exf6 {[%clk 0:00:24.3]} 26. Ra6
{[%clk 0:00:42]} 26... Bd7 {[%clk 0:00:22.1]} 27. b5 {[%clk 0:00:39.3]} 27... c5
{[%clk 0:00:18.1]} 28. Rd6 {[%clk 0:00:34.3]} 28... c4 {[%clk 0:00:14.9]} 29.
Bf1 {[%clk 0:00:34]} 29... Kf7 {[%clk 0:00:14.9]} 30. Rxd5 {[%clk 0:00:34.2]}
30... Ke6 {[%clk 0:00:14]} 31. Bxc4 {[%clk 0:00:34.4]} 31... Ke7 {[%clk
0:00:14.4]} 32. b6 {[%clk 0:00:30.6]} 32... Rb8 {[%clk 0:00:14.3]} 33. Bb5
{[%clk 0:00:29.4]} 33... Be6 {[%clk 0:00:13.1]} 34. Rc5 {[%clk 0:00:29.7]} 34...
Rxb6 {[%clk 0:00:13.2]} 35. Bd3 {[%clk 0:00:29.1]} 35... Kd6 {[%clk 0:00:12.7]}
36. Ra5 {[%clk 0:00:29.8]} 36... Rc6 {[%clk 0:00:12.4]} 37. Kf2 {[%clk
0:00:28.8]} 37... Bd5 {[%clk 0:00:09]} 38. g3 {[%clk 0:00:27.3]} 38... f5 {[%clk
0:00:08.9]} 39. Ke3 {[%clk 0:00:26.9]} 39... h6 {[%clk 0:00:08.4]} 40. Kd4
{[%clk 0:00:27.1]} 40... Be6 {[%clk 0:00:08.3]} 41. Ra7 {[%clk 0:00:26.7]} 41...
Rb6 {[%clk 0:00:05.5]} 42. Ra6 {[%clk 0:00:25.6]} 42... Rxa6 {[%clk 0:00:04.9]}
43. Bxa6 {[%clk 0:00:26.4]} 43... g5 {[%clk 0:00:05.3]} 44. Bc4 {[%clk 0:00:27]}
44... Bd7 {[%clk 0:00:05.1]} 45. Bd5 {[%clk 0:00:26.6]} 45... gxf4 {[%clk
0:00:03.5]} 46. gxf4 {[%clk 0:00:27.3]} 46... Bc8 {[%clk 0:00:01.1]} 47. c4
{[%clk 0:00:27.6]} 1-0